fUSD/lending_fUSD_20250103
["ID","MTS","AMOUNT","RATE_DAILY","PERIOD"]
[347543372,1735911395072,-5612.0,9.526e-05,2]
[347543373,1735911395108,-1445.41,9.526e-05,2]
[347543374,1735911395144,-1830.99,9.526e-05,2]
[347543375,1735911395182,-2163.21,9.526e-05,2]
[347543376,1735911395218,-500.0,9.526e-05,2]
[347543377,1735911395254,-3186.84,9.526e-05,2]
[347543378,1735911395289,-547.8,9.526e-05,2]
[347543379,1735911395327,-500.0,9.526e-05,2]
[347543380,1735911395364,-789.2,9.526e-05,2]
[347543381,1735911395401,-500.0,9.526e-05,2]
[347543382,1735911395438,-500.0,9.526e-05,2]
[347543383,1735911395489,-564.23,9.526e-05,2]
[347543384,1735911395527,-500.0,9.526e-05,2]
[347543385,1735911395565,-1603.94,9.526e-05,2]
[347543386,1735911395604,-4217.85,9.526e-05,2]
[347543387,1735911395643,-544.24,9.526e-05,2]
[347543388,1735911395683,-1110.43,9.526e-05,2]
[347543389,1735911395721,-549.41,9.526e-05,2]
[347543390,1735911395758,-1563.25,9.526e-05,2]
[347543391,1735911395796,-525.09,9.527e-05,2]
[347543392,1735911395833,-500.0,9.527e-05,2]
[347543393,1735911395869,-500.0,9.527e-05,2]
[347543394,1735911395906,-500.0,9.527e-05,2]
[347543395,1735911395945,-574.82,9.527e-05,2]
[347543396,1735911395981,-500.0,9.527e-05,2]
[347543397,1735911396019,-500.0,9.527e-05,2]
[347543398,1735911396056,-500.0,9.527e-05,2]
[347543399,1735911396091,-500.0,9.527e-05,2]
[347543400,1735911396128,-500.0,9.527e-05,2]
[347543401,1735911396164,-723.95,9.527e-05,2]
[347543402,1735911396202,-500.0,9.527e-05,2]
[347543403,1735911396238,-500.0,9.527e-05,2]
[347543404,1735911396275,-451.46602202,9.527e-05,2]
[347543405,1735911396312,-500.0,9.527e-05,2]
[347543406,1735911396349,-500.0,9.527e-05,2]
[347543407,1735911396387,-500.0,9.527e-05,2]
[347543408,1735911396424,-500.0,9.527e-05,2]
[347543409,1735911396462,-500.0,9.527e-05,2]
[347543410,1735911396499,-717.38,9.527e-05,2]
[347543411,1735911396535,-500.0,9.527e-05,2]
[347543412,1735911396570,-500.0,9.527e-05,2]
[347543413,1735911396606,-685.02,9.527e-05,2]
[347543414,1735911396642,-561.0,9.527e-05,2]
[347543415,1735911396677,-500.0,9.527e-05,2]
[347543416,1735911396714,-500.0,9.527e-05,2]
[347543417,1735911396750,-500.0,9.527e-05,2]
[347543418,1735911396785,-500.0,9.527e-05,2]
[347543419,1735911396820,-646.45,9.527e-05,2]
[347543420,1735911396856,-500.0,9.527e-05,2]
[347543421,1735911396894,-500.0,9.527e-05,2]
[347543422,1735911396931,-767.86,9.527e-05,2]
[347543423,1735911396967,-603.86,9.527e-05,2]
[347543424,1735911397002,-768.22,9.527e-05,2]
[347543425,1735911397038,-500.0,9.527e-05,2]
[347543426,1735911397074,-819.89,9.527e-05,2]
[347543427,1735911397110,-500.0,9.527e-05,2]
[347543428,1735911397146,-500.0,9.527e-05,2]
[347543429,1735911397184,-500.0,9.527e-05,2]
[347543430,1735911397220,-500.0,9.527e-05,2]
[347543431,1735911397256,-500.0,9.527e-05,2]
[347543432,1735911397293,-500.0,9.527e-05,2]
[347543433,1735911397331,-800.01,9.527e-05,2]
[347543434,1735911397370,-500.0,9.527e-05,2]
[347543435,1735911397407,-500.0,9.527e-05,2]
[347543436,1735911397445,-517.03,9.527e-05,2]
[347543437,1735911397483,-500.0,9.527e-05,2]
[347543438,1735911397522,-500.0,9.527e-05,2]
[347543439,1735911397559,-577.37,9.527e-05,2]
[347543440,1735911397598,-500.0,9.527e-05,2]
[347543441,1735911397640,-500.0,9.527e-05,2]
[347543442,1735911397678,-500.0,9.527e-05,2]
[347543443,1735911397715,-500.0,9.527e-05,2]
[347543444,1735911397751,-500.0,9.527e-05,2]
[347543445,1735911397787,-500.0,9.527e-05,2]
[347543446,1735911397823,-500.0,9.527e-05,2]
[347543447,1735911397859,-500.0,9.527e-05,2]
[347543448,1735911397895,-500.0,9.527e-05,2]
[347543449,1735911397931,-634.23,9.527e-05,2]
[347543450,1735911397968,-500.0,9.527e-05,2]
[347543451,1735911398004,-500.0,9.527e-05,2]
[347543452,1735911398040,-500.0,9.527e-05,2]
[347543453,1735911398077,-500.0,9.527e-05,2]
[347543454,1735911398112,-500.0,9.527e-05,2]
[347543455,1735911398148,-500.0,9.527e-05,2]
[347543456,1735911398184,-500.0,9.527e-05,2]
[347543457,1735911398220,-500.0,9.527e-05,2]
[347543458,1735911398256,-500.0,9.527e-05,2]
[347543459,1735911398294,-500.0,9.527e-05,2]
[347543460,1735911398331,-500.0,9.527e-05,2]
[347543461,1735911398369,-500.0,9.527e-05,2]
[347543462,1735911398406,-500.0,9.527e-05,2]
[347543463,1735911398444,-500.0,9.527e-05,2]
[347543464,1735911398481,-500.0,9.527e-05,2]
[347543465,1735911398518,-500.0,9.527e-05,2]
[347543466,1735911398556,-500.0,9.527e-05,2]
[347543467,1735911398594,-667.31,9.527e-05,2]
[347543468,1735911398635,-500.0,9.527e-05,2]
[347543469,1735911398672,-500.0,9.527e-05,7]
[347543470,1735911398709,-500.0,9.527e-05,2]
[347543471,1735911398746,-500.0,9.527e-05,2]
[347543472,1735911398782,-500.0,9.527e-05,2]
[347543473,1735911398816,-500.0,9.527e-05,2]
[347543474,1735911398851,-575.94,9.527e-05,2]
[347543475,1735911398885,-214.07422505,9.527e-05,2]
[347543476,1735911398920,-500.0,9.527e-05,2]
[347543477,1735911399331,-500.0,9.527e-05,2]
[347543478,1735911399369,-500.0,9.527e-05,2]
[347543479,1735911399409,-500.0,9.527e-05,2]
[347543480,1735911399449,-500.0,9.527e-05,2]
[347543481,1735911399488,-500.0,9.527e-05,2]
[347543482,1735911399525,-500.0,9.527e-05,2]
[347543483,1735911399564,-821.7,9.527e-05,2]
[347543484,1735911399600,-782.31,9.527e-05,2]
[347543485,1735911399639,-500.0,9.527e-05,2]
[347543486,1735911399680,-500.0,9.527e-05,2]
[347543487,1735911399716,-500.0,9.527e-05,2]
[347543488,1735911399752,-500.0,9.527e-05,2]
[347543489,1735911399789,-500.0,9.527e-05,2]
[347543490,1735911399828,-500.0,9.527e-05,2]
[347543491,1735911399866,-500.0,9.527e-05,2]
[347543492,1735911399904,-500.0,9.527e-05,2]
[347543493,1735911399946,-500.0,9.527e-05,2]
[347543494,1735911399984,-500.0,9.527e-05,2]
[347543495,1735911400022,-500.0,9.527e-05,2]
[347543496,1735911400058,-695.93,9.527e-05,2]
[347543497,1735911400094,-500.0,9.527e-05,2]
[347543498,1735911400130,-500.0,9.527e-05,2]
[347543499,1735911400167,-500.0,9.527e-05,2]
[347543500,1735911400203,-766.39,9.527e-05,2]
[347543501,1735911400240,-500.0,9.527e-05,2]
[347543502,1735911400276,-500.0,9.527e-05,2]
[347543503,1735911400312,-679.02,9.527e-05,2]
[347543504,1735911400349,-500.0,9.527e-05,2]
[347543505,1735911400386,-500.0,9.527e-05,2]
[347543506,1735911400423,-500.0,9.527e-05,2]
[347543507,1735911400460,-500.0,9.527e-05,2]
[347543508,1735911400496,-500.0,9.527e-05,2]
[347543509,1735911400531,-500.0,9.527e-05,2]
[347543510,1735911400567,-506.97,9.527e-05,2]
[347543511,1735911400604,-516.99,9.527e-05,2]
[347543512,1735911400641,-528.96,9.527e-05,2]
[347543513,1735911400677,-2855.79,9.527e-05,2]
[347543514,1735911400714,-752.29,9.527e-05,2]
[347543515,1735911400750,-500.0,9.527e-05,2]
[347543516,1735911400783,-500.0,9.527e-05,2]
[347543517,1735911400818,-500.0,9.527e-05,2]
[347543518,1735911400854,-8528.44,9.527e-05,2]
[347543519,1735911400889,-524.4,9.527e-05,2]
[347543520,1735911400924,-150.0,9.527e-05,2]
[347543521,1735911400958,-6832.21,9.528e-05,2]
[347543522,1735911400994,-672.86,9.528e-05,2]
[347543523,1735911401029,-3134.88,9.528e-05,2]
[347543524,1735911401065,-6223.09,9.528e-05,2]
[347543525,1735911401102,-1343.3,9.528e-05,2]
[347543526,1735911401138,-667.88,9.528e-05,2]
[347543527,1735911401174,-1282.12,9.528e-05,2]
[347543528,1735911401209,-862.19,9.528e-05,2]
[347543529,1735911401245,-500.0,9.528e-05,2]
[347543530,1735911401280,-722.7,9.528e-05,2]
[347543531,1735911401317,-500.0,9.528e-05,2]
[347543532,1735911401353,-500.0,9.528e-05,2]
[347543533,1735911401389,-810.53,9.528e-05,2]
[347543534,1735911401425,-514.54,9.528e-05,2]
[347543535,1735911401462,-567.44,9.528e-05,2]
[347543536,1735911401498,-500.0,9.528e-05,2]
[347543537,1735911401535,-668.89,9.528e-05,2]
[347543538,1735911401572,-986.46,9.528e-05,2]
[347543539,1735911401608,-224.06718112,9.528e-05,2]
[347543540,1735911401644,-980.78,9.528e-05,2]
[347543541,1735911401680,-630.51,9.528e-05,2]
[347543542,1735911401716,-1101.77,9.528e-05,2]
[347543543,1735911401751,-1254.06,9.528e-05,2]
[347543544,1735911401786,-894.87,9.528e-05,2]
[347543545,1735911401822,-669.19,9.528e-05,2]
[347543546,1735911401857,-500.0,9.528e-05,2]
[347543547,1735911401892,-500.0,9.528e-05,2]
[347543548,1735911401927,-500.0,9.528e-05,2]
[347543549,1735911401961,-611.02,9.528e-05,2]
[347543550,1735911401995,-940.96,9.528e-05,2]
[347543551,1735911402031,-690.25,9.528e-05,2]
[347543552,1735911402065,-151.455068,9.528e-05,2]
[347543553,1735911402099,-500.0,9.528e-05,2]
[347543554,1735911402132,-991.05,9.528e-05,2]
[347543555,1735911402167,-540.58,9.528e-05,2]
[347543556,1735911402203,-748.1,9.528e-05,2]
[347543557,1735911402239,-500.0,9.528e-05,2]
[347543558,1735911402275,-527.5,9.528e-05,2]
[347543559,1735911402312,-915.98,9.528e-05,2]
[347543560,1735911402350,-992.23,9.528e-05,2]
[347543561,1735911402387,-799.13,9.528e-05,2]
[347543562,1735911402425,-2266.76,9.528e-05,2]
[347543563,1735911402463,-795.89,9.528e-05,2]
[347543564,1735911402499,-1416.07,9.528e-05,2]
[347543565,1735911402535,-702.37,9.528e-05,2]
[347543566,1735911402571,-571.17,9.528e-05,2]
[347543567,1735911402612,-821.69,9.528e-05,2]
[347543568,1735911402651,-1463.88,9.528e-05,2]
[347543569,1735911402686,-530.42,9.528e-05,2]
[347543570,1735911402720,-911.33,9.528e-05,2]
[347543571,1735911402755,-953.09,9.528e-05,2]
[347543572,1735911402792,-1281.85,9.528e-05,2]
[347543573,1735911402828,-500.0,9.528e-05,2]
[347543574,1735911402863,-2454.54,9.528e-05,2]
[347543575,1735911402897,-674.24,9.528e-05,2]
[347543576,1735911402931,-1050.45,9.528e-05,2]
[347543577,1735911402966,-583.2,9.528e-05,2]
[347543578,1735911403000,-2251.2,9.528e-05,2]
[347543579,1735911403034,-632.57,9.528e-05,2]
[347543580,1735911403068,-863.99,9.528e-05,2]
[347543581,1735911403101,-973.13,9.528e-05,2]
[347543582,1735911403134,-1174.44,9.528e-05,2]
[347543583,1735911403168,-500.0,9.528e-05,2]
[347543584,1735911403203,-500.0,9.528e-05,2]
[347543585,1735911403237,-2354.49,9.528e-05,2]
[347543586,1735911403282,-1500.05,9.528e-05,2]
[347543587,1735911403319,-1001.66,9.528e-05,2]
[347543588,1735911403356,-905.69,9.528e-05,2]
[347543589,1735911403393,-684.8,9.528e-05,2]
[347543590,1735911403430,-1709.9,9.528e-05,2]
[347543591,1735911403468,-1222.36,9.528e-05,2]
[347543592,1735911403505,-660.68,9.528e-05,2]
[347543593,1735911403542,-500.0,9.528e-05,2]
[347543594,1735911403581,-500.0,9.528e-05,2]
[347543595,1735911403618,-7199.2,9.528e-05,2]
[347543596,1735911403656,-733.89,9.528e-05,2]
[347543597,1735911403691,-830.03,9.528e-05,2]
[347543598,1735911403727,-736.19,9.528e-05,2]
[347543599,1735911403765,-617.61,9.528e-05,2]
[347543600,1735911403799,-1235.46,9.528e-05,2]
[347543601,1735911403834,-910.48,9.528e-05,2]
[347543602,1735911403870,-3060.86,9.528e-05,2]
[347543603,1735911403905,-515.95,9.528e-05,2]
[347543604,1735911403941,-500.0,9.528e-05,2]
[347543605,1735911403976,-844.17,9.528e-05,2]
[347543606,1735911404010,-790.79,9.528e-05,2]
[347543607,1735911404046,-735.35,9.528e-05,2]
[347543608,1735911404081,-1025.64,9.528e-05,2]
[347543609,1735911404116,-724.69,9.528e-05,2]
[347543610,1735911404152,-4239.02,9.528e-05,2]
[347543611,1735911404192,-500.0,9.528e-05,2]
[347543612,1735911404228,-1372.12,9.528e-05,2]
[347543613,1735911404265,-1006.77,9.528e-05,2]
[347543614,1735911404301,-1023.35,9.528e-05,2]
[347543615,1735911404337,-710.19,9.528e-05,2]
[347543616,1735911404375,-646.1,9.528e-05,2]
[347543617,1735911404412,-949.03,9.528e-05,2]
[347543618,1735911404451,-544.89,9.528e-05,2]
[347543619,1735911404489,-914.09,9.528e-05,2]
[347543620,1735911404527,-2475.36,9.528e-05,2]
[347543621,1735911404564,-161.08574053,9.528e-05,2]
[347543622,1735911404600,-518.13,9.528e-05,2]
[347543623,1735911404642,-500.0,9.528e-05,2]
[347543624,1735911404678,-515.39,9.528e-05,2]
[347543625,1735911404715,-595.24,9.528e-05,2]
[347543626,1735911404753,-500.0,9.528e-05,2]
[347543627,1735911404790,-629.19,9.528e-05,2]
[347543628,1735911404828,-3275.71,9.528e-05,2]
[347543629,1735911404863,-1387.68,9.528e-05,2]
[347543630,1735911404899,-657.03,9.528e-05,2]
[347543631,1735911404937,-604.43,9.528e-05,2]
[347543632,1735911404977,-720.78,9.528e-05,2]
[347543633,1735911405017,-500.0,9.528e-05,2]
[347543634,1735911405055,-500.0,9.528e-05,2]
[347543635,1735911405092,-812.27,9.528e-05,2]
[347543636,1735911405128,-752.4,9.528e-05,2]
[347543637,1735911405168,-760.43,9.528e-05,2]
[347543638,1735911405206,-500.0,9.528e-05,2]
[347543639,1735911405240,-1128.71,9.528e-05,2]
[347543640,1735911405276,-1542.09,9.528e-05,2]
[347543641,1735911405312,-500.0,9.528e-05,2]
[347543642,1735911405353,-500.0,9.528e-05,2]
[347543643,1735911405395,-500.0,9.528e-05,2]
[347543644,1735911405435,-5127.05,9.528e-05,2]
[347543645,1735911405472,-500.0,9.528e-05,2]
[347543646,1735911405507,-1336.17,9.528e-05,2]
[347543647,1735911405542,-1178.16,9.528e-05,2]
[347543648,1735911405584,-1642.66,9.528e-05,2]
[347543649,1735911405626,-659.29,9.528e-05,2]
[347543650,1735911405668,-613.33,9.528e-05,2]
[347543651,1735911405714,-500.0,9.528e-05,2]
[347543652,1735911405756,-792.16,9.528e-05,2]
[347543653,1735911405800,-500.0,9.528e-05,2]
[347543654,1735911405846,-740.65,9.528e-05,2]
[347543655,1735911405891,-1443.42,9.528e-05,2]
[347543656,1735911405934,-604.51,9.528e-05,2]
[347543657,1735911405974,-500.0,9.529e-05,2]
[347543658,1735911406016,-500.0,9.529e-05,2]
[347543659,1735911406058,-740.07,9.529e-05,2]
[347543660,1735911406099,-500.0,9.529e-05,2]
[347543661,1735911406142,-500.0,9.529e-05,2]
[347543662,1735911406183,-500.0,9.529e-05,2]
[347543663,1735911406224,-500.0,9.529e-05,2]
[347543664,1735911406264,-665.84,9.529e-05,2]
[347543665,1735911406306,-500.0,9.529e-05,2]
[347543666,1735911406347,-500.0,9.529e-05,2]
[347543667,1735911406389,-500.0,9.529e-05,2]
[347543668,1735911406433,-500.0,9.529e-05,2]
[347543669,1735911406477,-743.93,9.529e-05,2]
[347543670,1735911406522,-500.0,9.529e-05,2]
[347543671,1735911406566,-850.19,9.529e-05,2]
[347543672,1735911406604,-686.44,9.529e-05,2]
[347543673,1735911406644,-506.59,9.529e-05,2]
[347543674,1735911406684,-500.0,9.529e-05,2]
[347543675,1735911406725,-2257.86,9.529e-05,2]
[347543676,1735911406762,-500.0,9.529e-05,2]
[347543677,1735911406798,-500.0,9.529e-05,2]
[347543678,1735911406839,-838.72,9.529e-05,2]
[347543679,1735911406882,-749.12,9.529e-05,2]
[347543680,1735911406918,-934.37,9.529e-05,2]
[347543681,1735911406958,-590.23,9.529e-05,2]
[347543682,1735911406998,-530.67,9.529e-05,2]
[347543683,1735911407036,-500.0,9.529e-05,2]
[347543684,1735911407075,-1043.92,9.529e-05,2]
[347543685,1735911407115,-1937.85,9.529e-05,2]
[347543686,1735911407157,-674.57,9.529e-05,2]
[347543687,1735911407202,-500.0,9.529e-05,2]
[347543688,1735911407246,-712.33,9.529e-05,2]
[347543689,1735911407287,-500.0,9.529e-05,2]
[347543690,1735911407328,-500.0,9.529e-05,2]
[347543691,1735911407370,-1030.35,9.529e-05,2]
[347543692,1735911407412,-500.0,9.529e-05,2]
[347543693,1735911407456,-630.01,9.529e-05,2]
[347543694,1735911407499,-776.68,9.529e-05,2]
[347543695,1735911407541,-3113.75,9.529e-05,2]
[347543696,1735911407584,-5049.47,9.529e-05,2]
[347543697,1735911407626,-5444.29,9.529e-05,2]
[347543698,1735911407670,-2197.61,9.529e-05,2]
[347543699,1735911407715,-5863.45,9.529e-05,2]
[347543700,1735911407754,-2221.62,9.529e-05,2]
[347543701,1735911407794,-553.25,9.529e-05,2]
[347543702,1735911407833,-1033.48,9.529e-05,2]
[347543703,1735911407876,-1261.16,9.529e-05,2]
[347543704,1735911407918,-2921.61,9.529e-05,2]
[347543705,1735911407959,-1738.74,9.529e-05,2]
[347543706,1735911407999,-1589.94,9.529e-05,2]
[347543707,1735911408039,-1958.02,9.529e-05,2]
[347543708,1735911408079,-2248.9,9.529e-05,2]
[347543709,1735911408119,-1902.54,9.529e-05,2]
[347543710,1735911408158,-1187.09,9.529e-05,2]
[347543711,1735911408201,-4363.77,9.529e-05,2]
[347543712,1735911408242,-1174.41,9.529e-05,2]
[347543713,1735911408282,-500.0,9.529e-05,2]
[347543714,1735911408324,-771.47,9.529e-05,2]
[347543715,1735911408365,-1834.24,9.529e-05,2]
[347543716,1735911408406,-4862.5,9.529e-05,2]
[347543717,1735911408447,-250000.0,9.53e-05,2]
[347543718,1735911408488,-3788.38,9.53e-05,2]
[347543719,1735911408528,-500.0,9.553e-05,2]
[347543720,1735911408570,-150.0,9.562e-05,2]
[347543721,1735911408609,-150.0,9.562e-05,2]
[347543722,1735911408649,-150.0,9.562e-05,2]
[347543723,1735911408689,-156.1341885,9.562e-05,2]
[347543724,1735911408729,-45000.0,9.577e-05,2]
[347543725,1735911408769,-500.0,9.579e-05,2]
[347543726,1735911408811,-6583676.59060373,9.58e-05,2]
[347543727,1735911412201,10000.0,0.00015,60]
[347543728,1735911417746,10000.0,0.00015,60]
[347543729,1735911423470,10000.0,0.00015,60]
[347543730,1735911437023,7000.0,0.00015,60]
[347543731,1735911467701,623.0,0.00015,60]
[347543732,1735911499927,-167.2,8.7e-05,2]
[347543733,1735911499956,-47422.8489,8.778e-05,2]
[347543734,1735911499985,-300.0,8.877e-05,2]
[347543735,1735911500014,-1089.48,8.878e-05,2]
[347543736,1735911500042,-500.0,8.878e-05,2]
[347543737,1735911500070,-500.0,8.878e-05,2]
[347543738,1735911500098,-500.0,8.878e-05,2]
[347543739,1735911500126,-500.0,8.878e-05,2]
[347543740,1735911500154,-500.0,8.878e-05,2]
[347543741,1735911500181,-500.0,8.878e-05,2]
[347543742,1735911500209,-589.68,8.878e-05,2]
[347543743,1735911500236,-500.0,8.878e-05,2]
[347543744,1735911500264,-500.0,8.878e-05,2]
[347543745,1735911500293,-500.0,8.878e-05,2]
[347543746,1735911500321,-500.0,8.878e-05,2]
[347543747,1735911500349,-500.0,8.878e-05,2]
[347543748,1735911500378,-500.0,8.878e-05,2]
[347543749,1735911500406,-568.32,8.878e-05,2]
[347543750,1735911500433,-500.0,8.878e-05,2]
[347543751,1735911500461,-500.0,8.878e-05,2]
[347543752,1735911500489,-500.0,8.878e-05,2]
[347543753,1735911500517,-500.0,8.878e-05,2]
[347543754,1735911500544,-730.99,8.878e-05,2]
[347543755,1735911500571,-500.0,8.878e-05,2]
[347543756,1735911500601,-545.73519847,8.878e-05,2]
[347543757,1735911500628,-500.0,8.878e-05,2]
[347543758,1735911500657,-500.0,8.878e-05,2]
[347543759,1735911500686,-500.0,8.878e-05,2]
[347543760,1735911500713,-500.0,8.878e-05,2]
[347543761,1735911500740,-500.0,8.878e-05,2]
[347543762,1735911500769,-500.0,8.878e-05,2]
[347543763,1735911500796,-500.0,8.878e-05,2]
[347543764,1735911500823,-500.0,8.878e-05,2]
[347543765,1735911500850,-500.0,8.878e-05,2]
[347543766,1735911500877,-500.0,8.878e-05,2]
[347543767,1735911500904,-500.0,8.878e-05,2]
[347543768,1735911500931,-500.0,8.878e-05,2]
[347543769,1735911500959,-500.0,8.878e-05,2]
[347543770,1735911500986,-500.0,8.878e-05,2]
[347543771,1735911501014,-500.0,8.878e-05,2]
[347543772,1735911501041,-500.0,8.878e-05,2]
[347543773,1735911501069,-500.0,8.878e-05,2]
[347543774,1735911501098,-500.0,8.878e-05,2]
[347543775,1735911501126,-500.0,8.878e-05,2]
[347543776,1735911501155,-500.0,8.878e-05,2]
[347543777,1735911501183,-585.14,8.878e-05,2]
[347543778,1735911501211,-500.0,8.878e-05,2]
[347543779,1735911501241,-500.0,8.878e-05,2]
[347543780,1735911501269,-500.0,8.878e-05,2]
[347543781,1735911501296,-500.0,8.878e-05,2]
[347543782,1735911501323,-500.0,8.878e-05,2]
[347543783,1735911501350,-500.0,8.878e-05,2]
[347543784,1735911501377,-1956.12,8.878e-05,2]
[347543785,1735911501405,-500.0,8.878e-05,2]
[347543786,1735911501433,-4055.04,8.878e-05,2]
[347543787,1735911501463,-500.0,8.878e-05,2]
[347543788,1735911501492,-500.0,8.878e-05,2]
[347543789,1735911501521,-500.0,8.878e-05,2]
[347543790,1735911501548,-523.78,8.878e-05,2]
[347543791,1735911501576,-523.65,8.878e-05,2]
[347543792,1735911501603,-500.0,8.878e-05,2]
[347543793,1735911501631,-962.28,8.878e-05,2]
[347543794,1735911501661,-500.0,8.878e-05,2]
[347543795,1735911501689,-1005.71,8.878e-05,2]
[347543796,1735911501717,-500.0,8.878e-05,2]
[347543797,1735911501744,-3385.86,8.878e-05,2]
[347543798,1735911501771,-1367.84,8.878e-05,2]
[347543799,1735911501797,-762.89,8.878e-05,2]
[347543800,1735911501826,-688.89,8.878e-05,2]
[347543801,1735911501853,-500.0,8.878e-05,2]
[347543802,1735911501880,-442.51478924,8.878e-05,2]
[347543803,1735911501909,-500.0,8.878e-05,2]
[347543804,1735911501937,-500.0,8.878e-05,2]
[347543805,1735911501964,-500.0,8.878e-05,2]
[347543806,1735911501993,-500.0,8.878e-05,2]
[347543807,1735911502280,-500.0,8.878e-05,2]
[347543808,1735911502308,-500.0,8.878e-05,2]
[347543809,1735911502336,-500.0,8.878e-05,2]
[347543810,1735911502365,-500.0,8.878e-05,2]
[347543811,1735911502392,-308.33552318,8.878e-05,2]
[347543812,1735911502421,-500.0,8.878e-05,2]
[347543813,1735911502449,-620.22,8.878e-05,2]
[347543814,1735911502477,-782.37,8.878e-05,2]
[347543815,1735911502506,-1251.03,8.878e-05,2]
[347543816,1735911502533,-500.0,8.878e-05,2]
[347543817,1735911502561,-505.24,8.878e-05,2]
[347543818,1735911502589,-500.0,8.878e-05,2]
[347543819,1735911502616,-500.0,8.878e-05,2]
[347543820,1735911502645,-500.0,8.878e-05,2]
[347543821,1735911502675,-500.0,8.878e-05,2]
[347543822,1735911502703,-500.0,8.878e-05,2]
[347543823,1735911502731,-500.0,8.878e-05,2]
[347543824,1735911502760,-500.0,8.878e-05,2]
[347543825,1735911502787,-500.0,8.878e-05,2]
[347543826,1735911502815,-1210.68,8.878e-05,2]
[347543827,1735911502845,-652.56,8.878e-05,2]
[347543828,1735911502871,-500.0,8.878e-05,2]
[347543829,1735911502900,-500.0,8.878e-05,2]
[347543830,1735911502927,-632.92,8.879e-05,2]
[347543831,1735911502955,-500.0,8.879e-05,2]
[347543832,1735911502982,-500.0,8.879e-05,2]
[347543833,1735911503010,-2569.32,8.879e-05,2]
[347543834,1735911503037,-581.23,8.879e-05,2]
[347543835,1735911503065,-3807.95,8.879e-05,2]
[347543836,1735911503092,-500.0,8.879e-05,2]
[347543837,1735911503118,-956.15,8.879e-05,2]
[347543838,1735911503145,-500.0,8.879e-05,2]
[347543839,1735911503173,-3948.87,8.978e-05,2]
[347543840,1735911503201,-683.04,8.978e-05,2]
[347543841,1735911503228,-500.0,8.978e-05,2]
[347543842,1735911503259,-500.0,8.978e-05,2]
[347543843,1735911503286,-500.0,8.978e-05,2]
[347543844,1735911503314,-500.0,8.978e-05,2]
[347543845,1735911503343,-500.0,8.978e-05,2]
[347543846,1735911503371,-500.0,8.978e-05,2]
[347543847,1735911503399,-500.0,8.978e-05,2]
[347543848,1735911503427,-823.34,8.978e-05,2]
[347543849,1735911503454,-2217.03,8.978e-05,2]
[347543850,1735911503484,-3011.83,8.978e-05,2]
[347543851,1735911503514,-500.0,8.978e-05,2]
[347543852,1735911503543,-2972.54,8.978e-05,2]
[347543853,1735911503572,-735.23,8.978e-05,2]
[347543854,1735911503600,-1958.16,8.978e-05,2]
[347543855,1735911503629,-500.0,8.978e-05,2]
[347543856,1735911503659,-857.07,8.978e-05,2]
[347543857,1735911503690,-675.12,8.978e-05,2]
[347543858,1735911503719,-500.0,8.978e-05,2]
[347543859,1735911503749,-6175.58,8.978e-05,2]
[347543860,1735911503780,-683.94,8.978e-05,2]
[347543861,1735911503807,-729.2,8.979e-05,2]
[347543862,1735911503834,-500.0,8.979e-05,2]
[347543863,1735911503861,-500.0,8.979e-05,2]
[347543864,1735911503889,-500.0,8.979e-05,2]
[347543865,1735911503917,-500.0,8.979e-05,2]
[347543866,1735911503944,-579.27,8.979e-05,2]
[347543867,1735911503971,-500.0,8.979e-05,2]
[347543868,1735911503998,-500.0,8.979e-05,2]
[347543869,1735911504028,-500.0,8.979e-05,2]
[347543870,1735911504055,-500.0,8.979e-05,2]
[347543871,1735911504082,-570.21,8.979e-05,2]